Cogmind - Beta 13 @@@ ROGUE MODE // 2024.05.02 @ 23:27:45 Player: Exceptionally Mediocre Result: Destroyed by Y-64 Sentinel with Wave Gun Performance ------------- Evolutions (5) 2500 Regions Visited (14) 2800 Robots Destroyed (137) 685 Value Destroyed (3933) 3933 Prototype IDs (40) 800 Alien Tech Used (0) 0 Bonus (835) 835 TOTAL SCORE: 11553 Bonus ------- High Alert Combat Kills 235 Aligned with FarCom 300 Met Imprinter 300 Cogmind --------- Core Integrity 0/1000 Matter 272/300 Energy 16/100 System Corruption 0% Temperature Cool (9) Movement Core (50) Location -5/Extension Parts ------- > --- POWER (1) -------- (None) > --- PROPULSION (6) --- (None) > --- UTILITY (8) ------ Advanced Weight Redist. System Structural Scanner Hacking Suite Advanced Hacking Suite System Shield System Shield Advanced System Shield > --- WEAPON (2) ------- Lance > --- INVENTORY (5) ---- Neutrino Core Large Storage Unit Advanced Signal Interpreter 0b10 Decoder Chip [Scout] Advanced System Restoration Module Peak State ------------ > --- POWER ------------ Light Fission Core > --- PROPULSION ------- VTOL Module Improved Cesium-ion Thruster Improved Cesium-ion Thruster Advanced Surge Thruster Impulse Thruster Array > --- UTILITY ---------- Large Storage Unit 0b10 Decoder Chip [Looter] Cloaking Device Hacking Suite Hacking Suite Makeshift Hacking Suite System Shield System Shield > --- WEAPON ----------- Power Sword Spear > --- INVENTORY -------- Enhanced Nuclear Core Light Angular Momentum Engine Neutrino Core VTOL Module VTOL Module Advanced Heat Sink Advanced Weight Redist. System 0b10 Decoder Chip [Scout] Advanced ECM Suite Advanced Shield Generator Dynamic Insulation System Improved Remote Datajack Power Sword CR-A16's Pointy Stick [Rating: 82] Favorites ----------- Power Ion Engine Engine Ion Engine Power Core Light Nuclear Core Propulsion Light Treads Treads Light Treads Flight Unit Improved Cesium-ion Thruster Utility Hacking Suite Device Structural Scanner Storage High-capacity Storage Unit Processor Improved Targeting Computer Hackware Hacking Suite Protection Hardened Light Armor Plating Weapon Heavy Hammer Energy Gun Medium Laser Energy Cannon Cooled Particle Cannon Ballistic Gun Assault Rifle Ballistic Cannon Bore Cannon Launcher Mini Grenade Launcher Special Weapon Plasma Flamer Impact Weapon Heavy Hammer Slashing Weapon Power Sword Piercing Weapon Spear Build | -11 -10 -10 -10 -9 -8 -7 -6 -6 -6 -6 -6 -5 -5 -5 ------- Run | Yrd Mat Min Exi Min Mat Fac Fac Was Fac Low Zio Pro Fac Ext Slots Evolved 10 | . . . . . 4 2 2 . . . . . 2 . Power . | . . . . . . . . . . . . . . . Propulsion 4 | . . . . . 2 . 1 . . . . . 1 . Utility 6 | . . . . . 2 2 1 . . . . . 1 . Weapon . | . . . . . . . . . . . . . . . Parts Attached 161 | 7 7 1 . 13 31 45 14 . 15 1 4 1 12 10 Power 17 | 1 . 1 . 2 2 4 2 . 1 . 1 . 1 2 Engine 8 | 1 . 1 . 2 2 1 1 . . . . . . . Core 9 | . . . . . . 3 1 . 1 . 1 . 1 2 Reactor . | . . . . . . . . . . . . . . . Propulsion 47 | 2 2 . . 4 14 12 4 . 3 . . 1 3 2 Treads 30 | 2 2 . . 4 14 8 . . . . . . . . Leg . | . . . . . . . . . . . . . . . Wheel . | . . . . . . . . . . . . . . . Hover . | . . . . . . . . . . . . . . . Flight 17 | . . . . . . 4 4 . 3 . . 1 3 2 Utility 51 | 2 3 . . 2 5 11 7 . 9 1 . . 8 3 Device 21 | 1 1 . . 1 . 3 3 . 7 1 . . 3 1 Storage 4 | 1 2 . . . . 1 . . . . . . . . Processor 4 | . . . . 1 2 . . . . . . . 1 . Hackware 11 | . . . . . . 2 2 . 2 . . . 3 2 Protection 11 | . . . . . 3 5 2 . . . . . 1 . Artifact . | . . . . . . . . . . . . . . . Weapon 46 | 2 2 . . 5 10 18 1 . 2 . 3 . . 3 Energy Gun 7 | 1 1 . . 2 2 1 . . . . . . . . Energy Cannon 9 | . . . . 1 . 8 . . . . . . . . Ballistic Gun 13 | 1 1 . . 1 5 4 1 . . . . . . . Ballistic Cannon 2 | . . . . . 1 1 . . . . . . . . Launcher 2 | . . . . . 2 . . . . . . . . . Special Weapon 1 | . . . . 1 . . . . . . . . . . Impact Weapon 5 | . . . . . . 4 . . 1 . . . . . Slashing Weapon 3 | . . . . . . . . . . . 1 . . 2 Piercing Weapon 4 | . . . . . . . . . 1 . 2 . . 1 Special Melee Weapon . | . . . . . . . . . . . . . . . Unidentified Prototypes 12 | . . . . . 4 5 . . 3 . . . . . Parts Lost 49 | . 1 1 . 6 11 5 3 . 3 . . 1 3 15 Power 8 | . . 1 . 2 1 2 . . . . . . . 2 Propulsion 23 | . . . . 2 8 2 2 . . . . 1 1 7 Utility 11 | . . . . 1 . 1 1 . 3 . . . 2 3 Weapon 7 | . 1 . . 1 2 . . . . . . . . 3 Highest Loss Streak 15 | . 1 1 . 2 5 3 2 . 1 . . 1 2 15 To Critical Strikes 1 | . . . . . 1 . . . . . . . . . Average Slot Usage (%) 95 | . 99 100 100 95 93 97 89 86 86 93 93 93 93 83 Engine 6 | . 14 14 14 13 8 3 4 . . . . . . . Core 2 | . . . . . . 3 1 6 5 6 6 6 5 4 Treads 21 | . 28 28 28 25 31 28 2 . . . . . . . Flight 6 | . . . . . . 1 24 26 25 26 26 26 29 24 Device 8 | . 14 14 14 4 . 9 8 13 12 13 13 13 7 10 Storage 8 | . 14 14 14 14 9 7 6 6 6 6 6 6 5 4 Processor 5 | . . . . 9 18 4 . . . . . . 2 . Hackware 11 | . . . . . . 14 25 26 26 26 26 26 27 23 Protection 4 | . . . . . 8 7 3 . . . . . 1 4 Energy Gun 4 | . 13 14 14 15 2 . . . . . . . . . Energy Cannon 1 | . . . . . . 4 . . . . . . . . Ballistic Gun 6 | . 13 14 14 10 12 4 3 . . . . . . . Impact Weapon 2 | . . . . . . 3 6 6 6 6 5 . . . Naked Turns . | . . . . . . . . . . . . . . . Heaviest Build 80 | 15 50 50 50 67 59 80 42 30 34 34 34 33 36 36 Greatest Support 86 | 40 40 40 40 40 82 86 41 32 43 34 34 41 45 37 Greatest Overweight (x) 15 | 1 1 1 1 15 2 2 9 . . . . . . . Average Overweight (x) . | . . 1 1 1 . . . . . . . . . . Largest Inventory Capacity 20 | 8 20 20 20 20 20 20 15 15 15 15 15 15 15 15 Average Capacity 17 | 7 12 20 20 20 20 19 15 15 15 15 15 15 15 14 Most Carried 20 | 6 18 19 20 20 20 20 15 15 15 14 15 15 15 15 Average Carried 17 | 2 10 18 19 18 19 19 14 15 14 14 14 14 13 13 Final Capacity 20 | 8 20 20 20 20 20 15 15 15 15 15 15 15 15 5 Final Carried 20 | 6 18 19 20 18 20 15 15 15 14 14 15 15 15 5 Class Distribution -------------------- 27% | Scavenger-Mutant 26% | Mutant 25% | Hacker-Mutant 20% | Hacker-Sprinter Dominant Class ---------------- Mutant | -10/Materials Scavenger-Mutant | -10/Mines Scavenger-Mutant | -10/Exiles Mutant | -9/Mines Mutant | -8/Materials Hacker-Mutant | -7/Factory Hacker-Mutant | -6/Factory Hacker-Sprinter | -6/Waste Hacker-Sprinter | -6/Factory Hacker-Sprinter | -6/Lower Caves Hacker-Sprinter | -6/Zion Hacker-Sprinter | -5/Proximity Caves Hacker-Sprinter | -5/Factory Hacker-Sprinter | -5/Extension Resources | -11 -10 -10 -10 -9 -8 -7 -6 -6 -6 -6 -6 -5 -5 -5 ----------- Run | Yrd Mat Min Exi Min Mat Fac Fac Was Fac Low Zio Pro Fac Ext Matter Collected 3138 | 288 391 30 . 145 824 905 211 . 53 . 104 75 110 2 Remotely . | . . . . . . . . . . . . . . . Salvage Created 5420 | 165 672 77 . 146 1240 2453 240 . 250 . . 53 124 . Parts 276 | 12 44 6 . . 78 101 19 . 2 . . 5 9 . Haulers Intercepted 11 | . 2 . . . 3 3 1 . 2 . . . . . Recyclers Shooed 2 | . 1 . . . . 1 . . . . . . . . Parts Field Recycled . | . . . . . . . . . . . . . . . Retrieved Matter . | . . . . . . . . . . . . . . . Parts Self-Destructed 5 | . . . . . . . . . . . . 5 . . Prevented 1 | . . . . . . . . . . . . 1 . . Kills | -11 -10 -10 -10 -9 -8 -7 -6 -6 -6 -6 -6 -5 -5 -5 ------- Run | Yrd Mat Min Exi Min Mat Fac Fac Was Fac Low Zio Pro Fac Ext Combat Hostiles Destroyed 87 | . 10 2 . 10 22 35 3 . . . . 1 4 . Melee 6 | . . . . . . 1 . . . . . 1 4 . Guns 40 | . 10 2 . 5 15 5 3 . . . . . . . Cannons 13 | . . . . 1 5 7 . . . . . . . . AOE 16 | . . . . 3 2 11 . . . . . . . . Classes Destroyed 14 | 3 5 . . 1 3 2 . . . . . . . . Worker 15 | 1 3 . . . 1 9 . . 1 . . . . . Builder 14 | . 2 . . . 1 5 1 . 4 . . . 1 . Tunneler 3 | 3 . . . . . . . . . . . . . . Hauler 11 | . 2 . . . 3 3 1 . 2 . . . . . Recycler 5 | 1 . . . . . 4 . . . . . . . . Operator 6 | . 1 . . . 1 2 2 . . . . . . . Watcher 6 | . 2 . . . 3 1 . . . . . . . . Swarmer 14 | . . . . . 4 3 3 . . . . . 4 . Grunt 42 | . 10 2 . . 12 18 . . . . . . . . Duelist 4 | . . . . . . 4 . . . . . . . . Sentry 7 | . . . . . 5 2 . . . . . . . . Hunter 3 | . . . . . 1 2 . . . . . . . . Programmer 7 | . . . . . . 6 . . . . . 1 . . Assembled 10 | . . . . 10 . . . . . . . . . . Best Kill Streak 12 | 4 7 2 . 4 6 12 3 . 2 . . 1 4 . Combat Bots Only 6 | . 4 2 . 4 5 6 3 . . . . 1 4 . Max Kills in Single Turn 5 | 1 1 1 . 2 2 5 1 . 1 . . 1 1 . Gunslinging 1 | . . . . . 1 . . . . . . . . . Exploded 2 | . . . . 1 1 2 . . . . . . . . Melee 1 | . . . . . . 1 . . . . . 1 1 . Uniques/NPCs Destroyed . | . . . . . . . . . . . . . . . Combat | -11 -10 -10 -10 -9 -8 -7 -6 -6 -6 -6 -6 -5 -5 -5 -------- Run | Yrd Mat Min Exi Min Mat Fac Fac Was Fac Low Zio Pro Fac Ext Hostile Shots Fired 786 | . 65 11 . 40 181 179 44 . 65 2 51 7 27 114 Missed 284 | . 19 . . 9 55 58 11 . 35 1 39 1 12 44 Damage Taken 8322 | . 558 152 . 637 1882 1791 469 . 522 20 133 134 220 1804 Core 1807 | . 96 28 . 32 192 93 45 . 221 . 61 20 61 958 Absorbed by Shields . | . . . . . . . . . . . . . . . Redirected to Shielding 119 | . . . . . 4 . . . . . . . 21 94 Regen/Repaired (Parts) 495 | . 187 . . . 259 . . . . . . . 49 . Core Remaining (%) 69 | 100 . . . 37 65 86 . . . . . 59 . . Volleys Fired 357 | 6 62 5 . 21 114 122 27 . . . . . . . Largest 2 | 2 2 2 . 2 2 2 1 . . . . . . . Hottest 250 | 70 70 70 . 250 107 250 28 . . . . . . . Shots Fired 577 | 12 123 10 . 35 189 181 27 . . . . . . . Gun 460 | 12 123 10 . 31 160 97 27 . . . . . . . Cannon 112 | . . . . 3 25 84 . . . . . . . . Launcher 4 | . . . . . 4 . . . . . . . . . Special 1 | . . . . 1 . . . . . . . . . . Kinetic 363 | 6 62 5 . 10 154 99 27 . . . . . . . Thermal 210 | 6 61 5 . 25 31 82 . . . . . . . . Explosive 4 | . . . . . 4 . . . . . . . . . Electromagnetic . | . . . . . . . . . . . . . . . Robot Hit Streak 21 | 4 9 6 . 11 21 12 7 . . . . . . . Robot Miss Streak 6 | 1 6 4 . 3 3 4 4 . . . . . . . Penetration Max 1 | . . . . . 1 . . . . . . . . . Secondary Targets 5 | . 2 . . . 3 . . . . . . . . . Max Gunslinging Chain 1 | . 1 . . . 1 . . . . . . . . . Shots Hit Robots 413 | 8 74 6 . 21 133 131 20 . 10 . . 1 8 1 Core Hits 221 | 6 37 4 . 17 62 84 7 . . . . 1 3 . Critical Kills 10 | . . 1 . . 7 . 2 . . . . . . . Critical Parts Destroyed 12 | . . . . . 7 1 . . 4 . . . . . Critical Strikes 30 | 1 5 1 . . 15 1 2 . 4 . . . 1 . Burn 7 | 1 5 . . . 1 . . . . . . . . . Destroy 17 | . . 1 . . 14 . 2 . . . . . . . Smash 5 | . . . . . . 1 . . 4 . . . . . Sever 1 | . . . . . . . . . . . . . 1 . Melee Attacks 213 | . . . . . . 21 28 . 92 . 13 3 46 10 Impact 139 | . . . . . . 21 28 . 88 . 2 . . . Slashing 52 | . . . . . . . . . . . . 3 40 9 Piercing 22 | . . . . . . . . . 4 . 11 . 6 1 Sneak Attacks 13 | . . . . . . 2 2 . 7 . . . 1 1 Combat Hostiles . | . . . . . . . . . . . . . . . Follow-up Attacks 1 | . . . . . . . . . . . . . 1 . Damage Inflicted 10920 | 112 934 109 . 469 2458 5093 604 . 654 . . 50 357 80 Guns 4526 | 112 934 109 . 225 1690 1192 264 . . . . . . . Cannons 2311 | . . . . 79 448 1784 . . . . . . . . Explosions 2113 | . . . . 165 316 1632 . . . . . . . . Melee 1966 | . . . . . . 485 340 . 654 . . 50 357 80 Ramming 4 | . . . . . 4 . . . . . . . . . Kinetic 3927 | 61 429 60 . 76 1845 1192 264 . . . . . . . Thermal 4707 | 51 505 49 . 393 293 3416 . . . . . . . . Explosive 316 | . . . . . 316 . . . . . . . . . Electromagnetic . | . . . . . . . . . . . . . . . Impact 1479 | . . . . . . 485 340 . 654 . . . . . Slashing 457 | . . . . . . . . . . . . 50 327 80 Piercing 30 | . . . . . . . . . . . . . 30 . Highest Corruption 5 | . . . . . . 5 . . 4 4 4 1 . . Average Corruption 2 | . . . . . . 2 . . 4 4 2 1 . . Corruption Purged . | . . . . . . . . . . . . . . . Corruption Blocked . | . . . . . . . . . . . . . . . Effects 34 | . . . . . . 29 . . 2 2 1 . . . Message Errors 6 | . . . . . . 5 . . . 1 . . . . Matter Fused 7 | . . . . . . 6 . . . . 1 . . . Heat Flow Errors 6 | . . . . . . 5 . . 1 . . . . . Energy Discharges 7 | . . . . . . 6 . . . 1 . . . . Data Loss (minor) 4 | . . . . . . 4 . . . . . . . . Data Loss (major) 1 | . . . . . . . . . 1 . . . . . Misfires 2 | . . . . . . 2 . . . . . . . . Alerts 1 | . . . . . . 1 . . . . . . . . Overload Shots 2 | . . . . . . 2 . . . . . . . . Overflow Damage 923 | . . . . 19 3 235 117 . 454 . . . 75 20 Projectiles 37 | . . . . . 3 34 . . . . . . . . Explosions 42 | . . . . 19 . 23 . . . . . . . . Melee 844 | . . . . . . 178 117 . 454 . . . 75 20 Knockbacks 11 | . . . . . 7 . 2 . 2 . . . . . Impact 4 | . . . . . . . 2 . 2 . . . . . Kinetic 7 | . . . . . 7 . . . . . . . . . Secondary . | . . . . . . . . . . . . . . . Self-Inflicted Damage 262 | . . . . 69 . 193 . . . . . . . . Shots 18 | . . . . 5 . 13 . . . . . . . . Rammed 1 | . . . . . 1 . . . . . . . . . Targets Rammed 1 | . . . . . 1 . . . . . . . . . Kicked . | . . . . . . . . . . . . . . . Crushed . | . . . . . . . . . . . . . . . Highest Temperature 460 | 18 225 113 . 460 223 458 7 . 147 5 5 . 4 37 Average Temperature 61 | 7 52 60 . 112 58 79 2 . 73 5 3 . 2 14 Received Heat Transfer 1978 | . 312 87 . 40 774 387 9 . 54 9 9 36 . 261 Effects 5 | . . . . . . 5 . . . . . . . . Shutdowns 1 | . . . . . . 1 . . . . . . . . Energy Bleed 1 | . . . . . . 1 . . . . . . . . Interference 3 | . . . . . . 3 . . . . . . . . Siege Activations . | . . . . . . . . . . . . . . . Robots Corrupted . | . . . . . . . . . . . . . . . Combat Hostiles . | . . . . . . . . . . . . . . . Parts Fried 16 | . . . . . . 1 . . 15 . . . . . Impact Corruptions 25 | . . . . . . 6 5 . 14 . . . . . Robots Melted 12 | . . . . 1 . 11 . . . . . . . . Combat Hostiles 12 | . . . . 1 . 11 . . . . . . . . Parts Melted 56 | . 6 1 . . 4 45 . . . . . . . . Heat Transferred 16378 | 222 1850 148 . 1780 816 11562 . . . . . . . . Parts Sabotaged . | . . . . . . . . . . . . . . . Parts Stolen . | . . . . . . . . . . . . . . . Parts Stripped . | . . . . . . . . . . . . . . . Power Chain Reactions . | . . . . . . . . . . . . . . . Alert | -11 -10 -10 -10 -9 -8 -7 -6 -6 -6 -6 -6 -5 -5 -5 ------- Run | Yrd Mat Min Exi Min Mat Fac Fac Was Fac Low Zio Pro Fac Ext Peak Influence 815 | 25 223 55 . 15 337 815 598 171 344 . . . 129 88 Initial 399 | . 16 . . . 1 98 399 141 119 . . . 28 63 Average 187 | 9 87 49 . 1 213 255 450 153 151 . . . 29 60 Maximum Alert Level 3 | . 1 . . . 1 3 2 . 1 . . . . . Low Security (%) 66 | 100 97 100 . 100 45 61 . 100 67 . . . 100 100 Level 1 16 | . 2 . . . 54 11 7 . 32 . . . . . Level 2 12 | . . . . . . 19 92 . . . . . . . Level 3 3 | . . . . . . 8 . . . . . . . . Level 4 . | . . . . . . . . . . . . . . . Level 5 . | . . . . . . . . . . . . . . . High Security . | . . . . . . . . . . . . . . . Max Security . | . . . . . . . . . . . . . . . Squads Dispatched 30 | . 3 . . . 3 13 4 . 6 . . . 1 . Investigation 11 | . 2 . . . 1 2 1 . 4 . . . 1 . Extermination 6 | . . . . . . 4 1 . 1 . . . . . Reinforcement 5 | . 1 . . . 1 3 . . . . . . . . Assault 2 | . . . . . . . 2 . . . . . . . Garrison 6 | . . . . . 1 4 . . 1 . . . . . Intercept . | . . . . . . . . . . . . . . . Searches Triggered . | . . . . . . . . . . . . . . . Construction Impeded . | . . . . . . . . . . . . . . . Haulers Reinforced 1 | . . . . . . 1 . . . . . . . . Active Scanning Responses . | . . . . . . . . . . . . . . . Cargo Convoy Interrupts . | . . . . . . . . . . . . . . . Stealth | -11 -10 -10 -10 -9 -8 -7 -6 -6 -6 -6 -6 -5 -5 -5 --------- Run | Yrd Mat Min Exi Min Mat Fac Fac Was Fac Low Zio Pro Fac Ext Distress Signals 6 | . . . . . 2 3 . . . . . . . 1 Communications Jammed . | . . . . . . . . . . . . . . . Distress Signals . | . . . . . . . . . . . . . . . Times Spotted 214 | . 21 2 . 12 32 50 9 5 27 3 22 6 8 17 Peak Tracking Total 19 | . 4 2 . 6 4 5 6 6 9 3 19 4 5 16 Tactical Retreats 26 | . . . . 1 1 1 3 . 10 . 3 1 3 3 Traps | -11 -10 -10 -10 -9 -8 -7 -6 -6 -6 -6 -6 -5 -5 -5 ------- Run | Yrd Mat Min Exi Min Mat Fac Fac Was Fac Low Zio Pro Fac Ext Traps Triggered 9 | . 1 . . . . 3 1 . 2 . . . 1 1 Indirectly . | . . . . . . . . . . . . . . . Trap Hack Attempts . | . . . . . . . . . . . . . . . Triggered . | . . . . . . . . . . . . . . . Disarmed . | . . . . . . . . . . . . . . . Reprogrammed . | . . . . . . . . . . . . . . . Reused . | . . . . . . . . . . . . . . . Traps Extracted . | . . . . . . . . . . . . . . . Installed . | . . . . . . . . . . . . . . . Triggered 2 | . . . . . . . . . . . . 2 . . Machines | -11 -10 -10 -10 -9 -8 -7 -6 -6 -6 -6 -6 -5 -5 -5 ---------- Run | Yrd Mat Min Exi Min Mat Fac Fac Was Fac Low Zio Pro Fac Ext Machines Disabled 17 | . . . . . 2 15 . . . . . . . . Max in Single Turn 8 | . . . . . 1 8 . . . . . . . . Garrison Access 7 | . . . . . 1 1 1 . 3 . . . 1 . Machines Repaired . | . . . . . . . . . . . . . . . Machines Dismantled . | . . . . . . . . . . . . . . . Machines Sabotaged . | . . . . . . . . . . . . . . . Overloaded Fab Kills . | . . . . . . . . . . . . . . . Hacking | -11 -10 -10 -10 -9 -8 -7 -6 -6 -6 -6 -6 -5 -5 -5 --------- Run | Yrd Mat Min Exi Min Mat Fac Fac Was Fac Low Zio Pro Fac Ext Machines Accessed 52 | . 7 1 1 . 4 7 5 . 15 . . . 8 4 Terminals 33 | . 5 1 . . 2 4 3 . 10 . . . 4 4 Fabricators 2 | . . . . . . 1 1 . . . . . . . Repair Stations 3 | . 1 . . . 1 . . . . . . . 1 . Recycling Units 5 | . 1 . . . . 1 . . 1 . . . 2 . Scanalyzers 1 | . . . . . . . . . 1 . . . . . Garrison Access 7 | . . . . . 1 1 1 . 3 . . . 1 . Total Hacks 177 | . 18 3 1 . 14 15 17 . 59 . . . 42 8 Successful 99 | . 10 1 1 . 7 7 11 . 32 . . . 27 3 Failed 77 | . 8 2 . . 7 8 6 . 27 . . . 14 5 Catastrophic 6 | . . . . . . . 2 . 4 . . . . . Database Lockouts 1 | . . . . . . . . . . . . . 1 . Manual 115 | . 10 3 1 . 3 10 13 . 40 . 1 . 32 2 Terminals 125 | . 11 3 . . 4 10 14 . 45 . . . 30 8 Fabricators 4 | . . . . . . 3 1 . . . . . . . Repair Stations 16 | . 4 . . . 6 . . . . . . . 6 . Recycling Units 10 | . 3 . . . . 1 . . 2 . . . 4 . Scanalyzers 5 | . . . . . . . . . 5 . . . . . Garrison Access 16 | . . . . . 4 1 2 . 7 . . . 2 . Terminal Hacks 35 | . 1 . 1 . . 1 6 . 13 . . . 10 3 Record 3 | . . . . . . . 1 . 1 . . . 1 . Part Schematic 2 | . . . . . . . . . 1 . . . 1 . Robot Analysis 1 | . . . . . . . . . 1 . . . . . Prototype ID Bank 2 | . 1 . . . . . . . 1 . . . . . Open Door 3 | . . . . . . . . . . . . . . 3 Branch Access Points 3 | . . . . . . . 1 . 1 . . . 1 . Terminal Index 4 | . . . . . . 1 1 . 1 . . . 1 . Fabricator Index 1 | . . . . . . . . . 1 . . . . . Unreport Threat 4 | . . . . . . . . . 2 . . . 2 . Dispatch Records 1 | . . . . . . . . . . . . . 1 . Patrol Status 2 | . . . . . . . 1 . . . . . 1 . Intercept Status 1 | . . . . . . . . . . . . . 1 . Recall Investigation 3 | . . . . . . . . . 2 . . . 1 . Recall Extermination 1 | . . . . . . . 1 . . . . . . . Recall Reinforcements 2 | . . . . . . . . . 2 . . . . . Recall Assault 1 | . . . . . . . 1 . . . . . . . Derelict Proto ID Bank 1 | . . . 1 . . . . . . . . . . . Fabricator Hacks 1 | . . . . . . . 1 . . . . . . . Build 1 | . . . . . . . 1 . . . . . . . Repair Station Hacks 12 | . 4 . . . 4 . . . . . . . 4 . Scan Component 6 | . 2 . . . 2 . . . . . . . 2 . Repair 6 | . 2 . . . 2 . . . . . . . 2 . Recycling Unit Hacks 5 | . . . . . . 1 . . 1 . . . 3 . Retrieve Components 5 | . . . . . . 1 . . 1 . . . 3 . Scanalyzer 4 | . . . . . . . . . 4 . . . . . Insert Component 2 | . . . . . . . . . 2 . . . . . Analyze 2 | . . . . . . . . . 2 . . . . . Garrison Access Hacks 7 | . . . . . 1 1 1 . 3 . . . 1 . Seal Access 7 | . . . . . 1 1 1 . 3 . . . 1 . Unauthorized Hacks 35 | . 5 1 . . 2 4 3 . 11 . . . 9 . Terminals 35 | . 5 1 . . 2 4 3 . 11 . . . 9 . Track 4 | . . . . . . . . . . . . . 4 . Assimilate 2 | . . . . . . . . . 1 . . . 1 . Botnet 28 | . 5 1 . . 2 4 3 . 10 . . . 3 . Operators 1 | . . . . . . . . . . . . . 1 . Fabricators . | . . . . . . . . . . . . . . . Repair Stations . | . . . . . . . . . . . . . . . Recycling Units . | . . . . . . . . . . . . . . . Scanalyzers . | . . . . . . . . . . . . . . . Garrison Access . | . . . . . . . . . . . . . . . Data Cores Recovered 3 | . . . . . . 1 2 . . . . . . . Used 1 | . . . . . . . 1 . . . . . . . Hacking Detections 36 | . 4 1 . . 4 6 4 . 12 . . . 4 1 Full Trace Events 10 | . 1 . . . 1 2 1 . 4 . . . 1 . Feedback Events 2 | . . . . . . . . . 1 . . . 1 . Hackware Fried 2 | . . . . . . . . . 1 . . . 1 . Feedback Blocked . | . . . . . . . . . . . . . . . Robot Schematics Acquired 4 | . . . . . . . . . . . 4 . . . Robots Built . | . . . . . . . . . . . . . . . Authchips . | . . . . . . . . . . . . . . . Time . | . . . . . . . . . . . . . . . Total Robot Build Rating . | . . . . . . . . . . . . . . . Part Schematics Acquired 18 | . . . . . . . . . 3 . 14 . 1 . Parts Built 1 | . . . . . . . 1 . . . . . . . Authchips . | . . . . . . . . . . . . . . . Time 42 | . . . . . . . 42 . . . . . . . Total Part Build Rating 8 | . . . . . . . 8 . . . . . . . Parts Repaired 6 | . 2 . . . 2 . . . . . . . 2 . Time 144 | . 52 . . . 64 . . . . . . . 28 . Parts Recycled . | . . . . . . . . . . . . . . . Recycled Matter . | . . . . . . . . . . . . . . . Retrieved Matter . | . . . . . . . . . . . . . . . Retrieved Components 7 | . . . . . . 2 . . 2 . . . 3 . Parts Scanalyzed 2 | . . . . . . . . . 2 . . . . . Part Schematics Acquired 2 | . . . . . . . . . 2 . . . . . Parts Damaged . | . . . . . . . . . . . . . . . Bothacking | -11 -10 -10 -10 -9 -8 -7 -6 -6 -6 -6 -6 -5 -5 -5 ------------ Run | Yrd Mat Min Exi Min Mat Fac Fac Was Fac Low Zio Pro Fac Ext Used RIF Installer . | . . . . . . . . . . . . . . . Robots Hacked . | . . . . . . . . . . . . . . . Non-combat . | . . . . . . . . . . . . . . . Combat . | . . . . . . . . . . . . . . . Robot Hacks Applied . | . . . . . . . . . . . . . . . Relay Couplers Released . | . . . . . . . . . . . . . . . Fabnet Peak Effective % . | . . . . . . . . . . . . . . . Robots Rewired 1 | . . . . . . . . . . . . . . 1 Allies Hacked . | . . . . . . . . . . . . . . . Hacks Repelled . | . . . . . . . . . . . . . . . Allies | -11 -10 -10 -10 -9 -8 -7 -6 -6 -6 -6 -6 -5 -5 -5 -------- Run | Yrd Mat Min Exi Min Mat Fac Fac Was Fac Low Zio Pro Fac Ext Total Allies 5 | . . . . . . . . 1 1 . . . 1 2 Largest Group 1 | . . . . . . . . 1 1 . . . 1 1 Highest-Rated Group 31 | . . . . . . . . 31 10 . . . 10 20 Highest-Rated Ally 31 | . . . . . . . . 31 10 . . . 10 20 Total Orders . | . . . . . . . . . . . . . . . Ally Attacks 5 | . . . . . . . . . . . . . . 5 Total Damage 120 | . . . . . . . . . . . . . . 120 Kills 1 | . . . . . . . . . . . . . . 1 Allies Corrupted . | . . . . . . . . . . . . . . . Allies Melted . | . . . . . . . . . . . . . . . Intel | -11 -10 -10 -10 -9 -8 -7 -6 -6 -6 -6 -6 -5 -5 -5 ------- Run | Yrd Mat Min Exi Min Mat Fac Fac Was Fac Low Zio Pro Fac Ext Robot Analysis Total 1 | . . . . . . . . . 1 . . . . . Derelict Logs Recovered 6 | . . . . 1 . . . . . 2 2 1 . . Drone Launches . | . . . . . . . . . . . . . . . Drone Recoveries . | . . . . . . . . . . . . . . . Decoded 0b10 Intel 12 | . . . . . . . . . . . . . 12 . Items 12 | . . . . . . . . . . . . . 12 . Exploration | -11 -10 -10 -10 -9 -8 -7 -6 -6 -6 -6 -6 -5 -5 -5 ------------- Run | Yrd Mat Min Exi Min Mat Fac Fac Was Fac Low Zio Pro Fac Ext Turns Passed 8945 | 132 811 158 525 778 1299 3110 440 26 638 60 429 107 316 116 Spaces Moved 7499 | 63 308 59 219 276 505 1763 441 93 1262 202 1131 343 620 214 Core 17 | 3 . . . 2 . . 2 . . . . . . 10 Treads 3076 | 60 308 59 219 274 505 1651 . . . . . . . . Legs . | . . . . . . . . . . . . . . . Wheels . | . . . . . . . . . . . . . . . Hover . | . . . . . . . . . . . . . . . Flight 4406 | . . . . . . 112 439 93 1262 202 1131 343 620 204 Fastest Speed 18 | 50 160 240 240 240 158 119 23 28 28 28 28 28 23 18 Average Speed 90 | 155 177 240 240 251 167 151 54 28 28 28 28 28 23 24 Slowest Speed 800 | 160 240 240 240 800 320 189 500 28 32 28 28 28 25 50 Overloaded Moves . | . . . . . . . . . . . . . . . Propulsion Burnouts . | . . . . . . . . . . . . . . . Robots Hopped 7 | . . . . . . . . . . . . . . 7 Cave-ins Triggered 1 | . . . . . . . . . 1 . . . . . Exploration Rate (%) 44 | 4 62 14 61 70 39 46 13 80 47 32 88 61 17 38 Regions Visited 14 Branch Regions 7 Pre-discovered Areas 1 | . . . . . . . . . . . 1 . . . Known Exits Taken 4 | . . . . . . . . . 1 . 1 1 1 . Unknown Exits Taken 8 | 1 1 1 1 1 1 1 . . . 1 . . . . Scrap Searched 7 | . . . . 2 . . . . . . 4 1 . . Spaces Dug 123 | . . . . . . 8 16 . 64 . . 2 28 5 Terrain Destroyed 219 | . . . . 16 30 57 17 . 64 . . 2 28 5 Melee 122 | . . . . . . 7 16 . 64 . . 2 28 5 Projectile 17 | . . . . . 8 8 1 . . . . . . . AOE 80 | . . . . 16 22 42 . . . . . . . . Terrain Rammed . | . . . . . . . . . . . . . . . Walls Destroyed . | . . . . . . . . . . . . . . . Machines Disabled . | . . . . . . . . . . . . . . . Actions | -11 -10 -10 -10 -9 -8 -7 -6 -6 -6 -6 -6 -5 -5 -5 --------- Run | Yrd Mat Min Exi Min Mat Fac Fac Was Fac Low Zio Pro Fac Ext Total 8790 | 82 451 66 220 331 782 2033 568 92 1396 204 1229 349 728 259 Wait 275 | . 61 . . . 67 3 41 . . 2 64 . 32 5 Move 7474 | 62 307 58 218 275 504 1762 441 92 1261 201 1130 342 619 202 Hop 5 | . . . . . . . . . . . . . . 5 Pick Up 143 | 7 11 2 1 11 33 30 6 . 14 . 10 2 15 1 Fast Attach 50 | 6 2 . . 3 13 8 6 . 8 . . . 3 1 Attach 63 | 1 1 1 . 8 10 18 3 . 3 . 1 1 7 9 Detach 18 | . 1 . . 3 1 7 3 . . . . . 1 2 Swap 48 | . 4 . . 2 8 19 5 . 4 1 3 . 2 . Drop 134 | . 2 . 1 8 31 43 8 . 18 . 10 1 9 3 Fire 357 | 6 62 5 . 21 114 122 27 . . . . . . . Melee 200 | . . . . . . 21 28 . 88 . 11 3 40 9 Ram . | . . . . . . . . . . . . . . . Kick . | . . . . . . . . . . . . . . . Crush 1 | . . . . . 1 . . . . . . . . . Escape Stasis 18 | . . . . . . . . . . . . . . 18 Rewire 4 | . . . . . . . . . . . . . . 4 Trap . | . . . . . . . . . . . . . . . Miscellaneous . | . . . . . . . . . . . . . . . Route ------- -11/Scrapyard -10/Materials (discovered 2 exits: [*Mat] / *Min) -10/Mines -10/Exiles -9/Mines -8/Materials -7/Factory (discovered 2 exits: *Fac / [*Low]) -6/Factory (discovered 2 exits: Low x2) -6/Waste -6/Factory (discovered 4 exits: *Fac x2 / *Low x2) -6/Lower Caves -6/Zion -5/Proximity Caves -5/Factory (discovered 6 exits: Fac x2 / *Upp x2 / *Ext x2) -5/Extension History --------- Turn | Location | Event 16 | -11/Scrapyard | Discovered new exit (range 15) 133 | -11/Scrapyard | Entered Materials 305 | -10/Materials | Build established: Mutant 536 | -10/Materials | Discovered new exit (range 4) 779 | -10/Materials | Discovered new exit (range 16) 894 | -10/Materials | Repaired Assault Rifle 922 | -10/Materials | Repaired Lgt. Treads 944 | -10/Materials | Entered Mines 1090 | -10/Mines | Deemed a non-threat by the Exiles lab entrance 1090 | -10/Mines | Discovered new exit (range 6) 1102 | -10/Mines | Entered Exiles 1167 | -10/Exiles | Met 8R-AWN 1201 | -10/Exiles | Met EX-HEX 1234 | -10/Exiles | Build established: Scavenger-Mutant 1270 | -10/Exiles | Met EX-BIN 1304 | -10/Exiles | Aligned with FarCom system 1306 | -10/Exiles | Given EX-Vault access code 1364 | -10/Exiles | Opened EX-Vault 1384 | -10/Exiles | Found Firepult 1433 | -10/Exiles | Warned to stay clear of 0b10 Research branches 1502 | -10/Exiles | Met EX-DEC 1608 | -10/Exiles | Discovered new exit (range 10) 1627 | -10/Exiles | Left Exiles lab with Firepult 1627 | -10/Exiles | Entered Mines 1709 | -9/Mines | Found a hidden stash of uninstalled traps 1714 | -9/Mines | Learned location of 1 exit from Proximity Caves 1755 | -9/Mines | A weapon hastily lodged in a ceiling crevice suddenly fell to the ground 1832 | -9/Mines | Assembled infested the area 1837 | -9/Mines | Assisted by a Guerilla fighting off Assembled 2007 | -9/Mines | Core integrity fell below 50% 2166 | -9/Mines | Build established: Mutant 2372 | -9/Mines | Discovered new exit (range 15) 2405 | -9/Mines | Entered Materials 2405 | -8/Materials | Evolved 4 slots: Propulsion x2, Utility x2 2539 | -8/Materials | Lost 3 parts (1n2w) 3081 | -8/Materials | Garrison activated, responded to threat 3362 | -8/Materials | Lost 5 parts (5n) 3495 | -8/Materials | Repaired Hrd. Light Armor Plating 3529 | -8/Materials | Repaired Hvy. Assault Rifle 3657 | -8/Materials | Discovered new exit (range 16) 3704 | -8/Materials | Entered Factory 3704 | -7/Factory | Evolved 2 slots: Utility x2 3818 | -7/Factory | Discovered new exit (range 9) 4076 | -7/Factory | Build established: Scavenger-Mutant 4078 | -7/Factory | Garrison activated, responded to threat 4864 | -7/Factory | Build established: Hacker-Mutant 5308 | -7/Factory | Discovered new exit (range 13) 5607 | -7/Factory | Garrison activated, responded to threat 6633 | -7/Factory | Lost 3 parts (2p1u) 6814 | -7/Factory | Entered another Factory area 6814 | -6/Factory | Evolved 2 slots: Propulsion x1, Utility x1 7150 | -6/Factory | Fabricated Impulse Thruster Array? 7164 | -6/Factory | First assault squad dispatched 7186 | -6/Factory | Identified exit to Lower Caves 7254 | -6/Factory | Sucked down chute 7254 | -6/Factory | Entered Waste 7255 | -6/Waste | Met a frightened Derelict 7265 | -6/Waste | Spotted C-40 Crusher 7266 | -6/Waste | Spotted C-40 Crusher 7270 | -6/Waste | Spotted C-40 Crusher 7270 | -6/Waste | Spotted C-40 Crusher 7275 | -6/Waste | Spotted C-40 Crusher 7276 | -6/Waste | Discovered new exit (range 16) 7276 | -6/Waste | Spotted C-40 Crusher 7280 | -6/Waste | Entered Factory 7394 | -6/Factory | Build established: Hacker-Sprinter 7441 | -6/Factory | Discovered new exit (range 10) 7603 | -6/Factory | Garrison activated, responded to threat 7771 | -6/Factory | Hacking Suite fried by hacking feedback 7801 | -6/Factory | Discovered new exit (range 8) 7857 | -6/Factory | Crushed by falling debris 7918 | -6/Factory | Entered Lower Caves 7921 | -6/Lower Caves | Learned 8 Factory zone layouts 7972 | -6/Lower Caves | Learned location of 1 exit from Factory 7975 | -6/Lower Caves | A Derelict revealed a hidden shortcut to a safe place 7978 | -6/Lower Caves | Entered Zion 8058 | -6/Zion | System corruption cleaned by Quarantine Array 8069 | -6/Zion | Received a hallucinogenic algorithm 8136 | -6/Zion | Identified exit to Proximity Caves 8137 | -6/Zion | Learned 8 Factory zone layouts 8146 | -6/Zion | Given A8's code to call for help 8169 | -6/Zion | Found CR-A16's Pointy Stick 8196 | -6/Zion | Learned location of Warlord (-5) 8328 | -6/Zion | Rebuked by Imprinter 8334 | -6/Zion | Attempted to imprint without authorization 8334 | -6/Zion | Attacked by Zionites 8372 | -6/Zion | Spotted 7W-56L(B) 8373 | -6/Zion | Spotted JB-CJ8(B) 8407 | -6/Zion | Entered Proximity Caves 8408 | -5/Proximity Caves | Identified exit to Factory 8410 | -5/Proximity Caves | Attracted the attention of an 0b10 checkpoint 8412 | -5/Proximity Caves | Learned 4 Factory zone layouts 8514 | -5/Proximity Caves | Entered Factory 8514 | -5/Factory | Evolved 2 slots: Propulsion x1, Utility x1 8515 | -5/Factory | Identified exit to Factory 8516 | -5/Factory | Identified exit to Upper Caves 8540 | -5/Factory | Identified exit to Extension 8540 | -5/Factory | Central database locked down 8584 | -5/Factory | Repaired Adv. Weight Redist. System 8585 | -5/Factory | Hacking Suite fried by hacking feedback 8601 | -5/Factory | Repaired Cloaking Device 8830 | -5/Factory | Entered Extension 8891 | -5/Extension | Rescued a captive Derelict 8913 | -5/Extension | Spotted B-75 Beast 8913 | -5/Extension | Rescued a captive Derelict 8917 | -5/Extension | Spotted B-75 Beast 8934 | -5/Extension | Core integrity fell below 50% 8941 | -5/Extension | Core integrity fell below 20% 8946 | -5/Extension | Destroyed by Y-64 Sentinel with Wave Gun Last Messages --------------- 08931_ Slug penetrates U-05 Engineer. 08931_ U-05 Engineer destroyed. 08933_ Penetrated by Slug. 08936_ Mak. Hacking Suite destroyed. 08936_ Penetrated by Slug. 08937_ U-05 Engineer builds a Wall. 08937_ Penetrated by Slug. 08938_ Dropped Lrg. Storage Unit. 08938_ Dropped System Shield. 08939_ Penetrated by Slug. 08939_ Acquired Lrg. Storage Unit. 08939_ Penetrated by Slug. 08940_ Power Sword destroyed. 08940_ Dropped Spear. 08941_ Acquired 1 matter. 08941_ Penetrated by Slug. 08941_ Slug penetrates U-05 Engineer. 08941_ U-05 Engineer destroyed. 08941_ Acquired 1 matter. 08941_ Penetrated by Slug. Map ----- +----------------------------------------------------+ | ###### ##??????????????????????????????????? | | ###### ####????????????????????????????????? | | ????## ####????????????????????????????????? | | ????## T"##????????????????????????????????? | | ????## ""##????????????????????????????????? | | ????## ####????????????????????????????????? | | ????## ####????????????????????????????????? | | ????######## ##??????????????????????????????????? | | ????######## ##??????????????????????????????????? | | ??????????## ##??????????????????????????????????? | | ??????????## ##??????????????????????????????????? | | ??????????## ########## ???????????????????????? | | ????????#### ########## ###??????????????????????? | | ????????####%### ## ### ####?????????????????????? | | ????????## " "" "" ""##?????????????????????? | | ????????## "w" ##?????????????????????? | | ????????## h Yw w ##?????????????????????? | | ########## Y #####??????????????????? | | ########## #######????????????????? | | ????????????????? | | ?????????????????? | | ??????????????????? | | = ??????????????????? | | !%* u ??????????????????? | | ########## ! BB #####??????????????????? | | ########## BB BB @#####??????????????????? | | ????????## BB % ;#?????????????????????? | | ????????##=%!%!% ##?????????????????????? | | ????????## = %|! ##?????????????????????? | | ????????####;;#/#"""########?????????????????????? | | ????????######### ? ########?????????????????????? | | ?????????????#####???????????????????????????????? | | | | | | | | | | | | | | | | | | | | | | | | | | | | | | | | | | | | | +----------------------------------------------------+ Best States ------------- Heat Dissipation 64 Energy Generation 19 Energy Capacity 315 Matter Stores 300 Matter Capacity 300 Sight Range 16 Terrain Scan Range 16 Terrain Scan Density 10 ECM Strength 2 Cloak Strength 2 Additional Mass Support 9 EM Shielding 2 Armor Coverage 375 Utility Shielding 66 Point Defense Rating 80 Phase Shifting 5 Evasion (%) 69 Targeting Accuracy 6 Recoil Reduction 4 Salvage Targeting 1 Offensive Hacking 31 Defensive Hacking 34 Item Schematics ----------------- Adv. ECM Suite | -6/Factory | Scanalyzed Hacking Suite | -6/Factory | Scanalyzed Imp. Cloaking Device | -6/Factory | Hacked Mak. Hover Unit | -6/Zion | Archive Adv. Drone Bay | -6/Zion | Archive Hvy. Beamcaster | -6/Zion | Archive Thermic Laser | -6/Zion | Archive Dispersion Rifle | -6/Zion | Archive HERF Cannon | -6/Zion | Archive 0b10 Decoder Chip [Scout] | -6/Zion | Archive Imp. Recalibrator | -6/Zion | Archive Imp. Particle Charger | -6/Zion | Archive Recoil Nullifier | -6/Zion | Archive Power Amplifier | -6/Zion | Archive Coil Gun | -6/Zion | Archive Enh. Gauss Cannon | -6/Zion | Archive Plasma Flamer | -6/Zion | Archive Adv. Hacking Suite | -5/Factory | Hacked Robot Schematics ------------------ Y-72 Warden | -6/Zion | Archive M-22 Extractor | -6/Zion | Archive T-07 Excavator | -6/Zion | Archive L-41 Fighter | -6/Zion | Archive Fabricated ------------ Impulse Thruster Array | x1 | -6/Factory | Preloaded Alien Tech Used ----------------- None Achievements -------------- None Challenges ------------ None Game ------ Seed ShadingNuclearShield Manual? 0 Play Time 02:01:57 Cumulative 147.6 hours Start 2024.05.01 @ 22:18:13 End 2024.05.02 @ 23:27:45 Sessions 3 Manual Loads 0 Difficulty Rogue Special Mode None Game No. 165 Rogue 165 Adventurer 0 Explorer 0 Win Type - Total 0 Types 0/0/0/0/0/0/0/0/0 Lore% 33 Gallery% 59 Achievement% 41 Wizard Run 0 Options --------- Layout 1 ASCII 0 Keyboard 1 Movement Vi Keybinds 0 Fullscreen 1 Font 24/Smallcaps Map View 50x35 Zoom Use 0% Tactical HUD 1 Map Filters NONE Filters NONE Steam 1 RUN: 69b1af26-c23f-4bc8-b1d8-176d4bc66008